bitfinex/quotes_ETHUSD_20250220
["timestamp","ask_amount","ask_price","bid_price","bid_amount"]
[1740033956161,7.54398455,2731.4,2730.7,3.66198]
[1740033956162,0.8075,2731.3,2730.7,3.66197]
[1740033956364,0.8075,2731.3,2731.0,0.262]
[1740033956867,3.66146,2731.2,2731.0,0.262]
[1740033957077,0.7909,2731.1,2731.0,0.262]
[1740033958298,0.7648,2731.3,2731.0,3.92366]
[1740033958806,0.7648,2731.3,2731.0,0.262]
[1740033959602,0.7648,2731.3,2731.0,3.92363]
[1740033960794,0.7648,2731.3,2731.0,7.58516]
[1740033960994,0.7648,2731.3,2731.2,3.66139]
[1740033961221,3.12526455,2731.4,2731.2,3.66139]
[1740033961709,0.7548,2731.5,2731.3,3.66126]
[1740033961910,0.7548,2731.5,2731.2,3.66131]
[1740033962109,0.7548,2731.5,2731.1,3.66144]
[1740033963102,1.50888046,2731.5,2731.0,0.262]
[1740033963439,0.8195,2731.3,2731.1,0.262]
[1740033963610,4.48085,2731.3,2731.1,0.262]
[1740033963934,3.66139,2731.2,2731.1,0.262]
[1740033964235,1.633704,2731.2,2731.1,0.262]
[1740033964723,8.956604,2731.2,2730.9,0.262]
[1740033964925,5.295124,2731.2,2730.9,0.262]
[1740033966125,5.295124,2731.2,2730.6,3.66217]
[1740033966126,0.8082,2731.1,2730.4,8.228]
[1740033966301,0.8082,2730.8,2730.5,0.262]
[1740033969244,0.8082,2730.8,2730.5,3.92421]
[1740033969439,0.8082,2730.8,2730.5,0.262]
[1740033970255,1.61155868,2730.8,2730.5,0.262]
[1740033970467,5.27352868,2730.8,2730.5,0.262]
[1740033970665,4.46532868,2730.8,2730.5,0.262]
[1740033970963,0.7762,2730.7,2730.2,3.66264]
[1740033971261,0.7762,2730.7,2730.4,0.262]
[1740033971769,3.6622,2730.6,2730.3,0.262]
[1740033972051,5.27498932,2730.7,2730.3,0.262]
[1740033972203,1.61287932,2730.7,2730.3,0.262]
[1740033973242,5.27497932,2730.7,2730.3,0.262]
[1740033973442,1.61287932,2730.7,2730.3,0.262]
[1740033973645,4.50223139,2730.6,2729.8,3.57364349]
[1740033973949,0.8177,2730.5,2730.0,3.66299]
[1740033974317,0.8177,2730.3,2730.0,0.262]
[1740033977017,0.8177,2730.3,2730.0,3.9249]
[1740033977218,0.8177,2730.3,2730.1,3.66282]
[1740033978656,0.8177,2730.3,2730.2,3.66273]
[1740033979019,0.8177,2730.3,2730.1,3.66282]
[1740033979654,0.8177,2730.3,2730.2,3.66273]
[1740033979948,0.7873,2730.5,2730.3,3.66259]
[1740033980349,0.8143,2730.8,2730.3,3.66259]
[1740033980752,0.8143,2730.8,2730.4,3.66238]
[1740033982362,3.12526455,2730.9,2730.4,3.66238]
[1740033982536,0.7939,2730.8,2730.5,3.66228]
[1740033984031,0.7939,2730.8,2730.5,3.66225]
[1740033984361,0.7939,2730.8,2730.6,3.66216]
[1740033984561,3.12526455,2730.9,2730.5,3.66225]
[1740033984861,3.12526455,2730.9,2730.5,7.32449]
[1740033985034,3.12526455,2730.9,2730.5,3.66224]
[1740033985856,3.12526455,2730.9,2730.2,0.8199]
[1740033986051,3.12526455,2730.9,2730.5,3.66226]
[1740033986649,3.12526455,2730.9,2730.4,3.66239]
[1740033987160,3.12526455,2730.9,2730.5,3.6623]
[1740033987391,3.12526455,2730.9,2730.4,7.32474]
[1740033988031,3.12526455,2730.9,2730.5,3.66232]
[1740033988233,3.12526455,2730.9,2730.4,3.66236]
[1740033988979,3.12526455,2730.9,2730.5,3.66226]
[1740033989475,3.12526455,2730.9,2730.6,0.8086]
[1740033989693,3.12526455,2730.9,2730.8,3.66193]
[1740033989847,3.12526455,2730.9,2730.8,0.262]
[1740033991356,0.7985,2731.1,2730.8,0.262]
[1740033991747,0.7985,2731.1,2730.8,3.92384]
[1740033992073,0.7985,2731.1,2730.8,0.262]
[1740033992395,0.7985,2731.1,2730.8,3.92392]
[1740033993493,0.7985,2731.1,2730.8,0.262]
[1740033993664,0.7985,2731.1,2730.8,3.92381]
[1740033994089,0.7985,2731.1,2730.8,0.262]
[1740033994374,0.7985,2731.1,2730.8,3.92382]
[1740033994571,3.12526455,2731.2,2730.8,3.92382]
[1740033995151,6.78670455,2731.2,2730.8,0.262]
[1740033995359,0.8225,2731.0,2730.8,0.262]
[1740033996181,3.66181,2730.9,2730.8,0.262]
[1740033997058,4.46841,2730.9,2730.8,0.262]
[1740033997282,7.59367455,2730.9,2730.8,0.262]
[1740033999561,0.7777,2730.7,2730.0,3.66292]
[1740033999755,0.7777,2730.5,2729.9,0.7527]
[1740033999992,3.66248,2730.4,2730.0,0.262]
[1740034000293,3.6627,2730.3,2730.0,0.262]
[1740034000594,0.7777,2730.2,2730.0,0.262]
[1740034000790,3.90296455,2730.2,2730.0,0.262]
[1740034001713,3.90296455,2730.2,2730.1,0.262]
[1740034001862,3.12526455,2730.2,2730.1,0.262]
[1740034003664,3.12526455,2730.2,2730.1,3.92486]
[1740034004391,3.90166455,2730.7,2730.1,3.92486]
[1740034004598,3.90166455,2730.7,2730.3,3.66258]
[1740034005197,7.56373455,2730.7,2730.1,3.92486]
[1740034005586,3.90166455,2730.7,2730.2,3.66271]
[1740034006292,3.90166455,2730.7,2730.3,0.262]
[1740034006664,3.90166455,2730.7,2730.3,3.92447]
[1740034007364,3.90166455,2730.7,2730.3,0.262]
[1740034008499,3.12526455,2730.7,2730.4,3.66242]
[1740034008664,3.12526455,2730.7,2730.5,3.66232]
[1740034008864,3.12526455,2730.7,2730.4,0.7838]
[1740034010102,3.12526455,2730.7,2730.4,4.44625]
[1740034012322,3.12526455,2730.7,2730.4,0.7838]
[1740034012619,3.12526455,2730.7,2730.4,4.44622]
[1740034016315,3.12526455,2730.7,2730.4,0.7838]
[1740034016502,3.12526455,2730.7,2730.5,3.6623]
[1740034016670,3.12526455,2730.7,2730.6,3.66219]
[1740034017023,3.12526455,2730.7,2730.5,3.66225]
[1740034019418,3.12526455,2730.7,2730.6,3.66219]
[1740034019970,3.12526455,2730.7,2730.6,4.106789]
[1740034020175,3.12526455,2730.7,2730.6,4.893089]
[1740034021216,4.47906,2731.1,2730.5,3.66233]
[1740034021718,4.47906,2731.1,2730.5,7.32458]
[1740034021885,4.47906,2731.1,2730.5,3.66225]
[1740034022485,4.47906,2731.1,2730.5,3.66224]
[1740034022680,0.8175,2731.1,2730.5,3.66224]
[1740034022914,0.8175,2731.1,2730.8,3.66187]
[1740034023116,3.12526455,2731.2,2730.7,4.44827]
[1740034023284,3.12526455,2731.2,2730.9,3.66177]
[1740034023487,3.12526455,2731.2,2730.7,4.44827]
[1740034023686,3.12526455,2731.2,2730.7,8.11024]
[1740034023986,3.12526455,2731.2,2730.8,3.66191]
[1740034024710,3.12526455,2731.2,2730.8,3.66185]
[1740034025614,3.12526455,2731.2,2730.8,7.32369]
[1740034025835,3.12526455,2731.2,2730.9,3.66166]
[1740034026846,3.12526455,2731.4,2731.1,3.66144]
[1740034027124,7.18133101,2731.4,2731.2,0.262]
[1740034028103,7.18133101,2731.4,2730.7,3.66203]
[1740034028104,4.45016,2731.3,2730.7,3.66203]
[1740034028304,3.66139,2731.2,2731.0,0.262]
[1740034028526,4.45042,2731.1,2731.0,0.262]
[1740034028689,5.261601,2731.1,2731.0,0.262]
[1740034028889,5.261601,2731.1,2730.4,0.8278]
[1740034028890,3.66175,2731.0,2730.4,4.49023]
[1740034029120,0.7889,2730.9,2730.5,0.262]
[1740034029436,3.66195,2730.8,2730.6,0.262]
[1740034029800,4.4507,2730.9,2730.6,0.262]
[1740034030391,5.65558955,2730.9,2730.6,0.262]
[1740034032931,8.7808541,2730.9,2730.6,0.262]
[1740034034418,3.91416455,2730.9,2730.6,0.262]
[1740034035998,7.57603455,2730.9,2730.6,0.262]
[1740034037350,3.91416455,2730.9,2730.6,0.262]
[1740034038028,7.57599455,2730.9,2730.6,0.262]
[1740034038347,3.91416455,2730.9,2730.6,0.262]
[1740034038937,3.12526455,2730.9,2730.6,0.262]
[1740034039138,3.12526455,2730.9,2730.7,3.66206]
[1740034039326,3.12526455,2730.9,2730.8,4.43823]
[1740034040233,3.12526455,2730.9,2730.8,0.7763]
[1740034040435,3.12526455,2730.9,2730.8,4.43823]
[1740034040641,3.12526455,2730.9,2730.8,5.04403935]
[1740034041211,3.66103,2731.5,2730.9,3.6617]
[1740034041212,3.12526455,2731.4,2730.9,3.6617]
[1740034041615,6.78642455,2731.4,2730.8,5.04403935]
[1740034041816,3.12526455,2731.4,2730.9,3.6617]
[1740034042550,3.12526455,2731.4,2731.0,3.66163]
[1740034042750,3.12526455,2731.4,2731.0,4.131703]
[1740034045051,3.12526455,2731.4,2731.2,3.66136]
[1740034046553,3.12526455,2731.4,2731.2,3.66128]
[1740034046957,3.12526455,2731.4,2731.2,7.32259]
[1740034047157,3.12526455,2731.4,2731.2,3.66128]
[1740034047328,3.12526455,2731.4,2731.3,0.448688]
[1740034047930,0.7928,2731.6,2731.3,0.448688]
[1740034048136,3.12526455,2731.7,2731.3,3.66123]
[1740034048763,3.12526455,2731.7,2731.4,3.92311]
[1740034048965,3.12526455,2731.7,2731.4,0.262]
[1740034053362,0.8229,2731.5,2731.4,0.262]
[1740034053543,0.8229,2731.5,2731.0,3.0]
[1740034053544,0.8229,2731.5,2731.3,0.262]
[1740034055568,4.48397,2731.5,2730.9,4.46542]
[1740034055735,4.48397,2731.5,2731.3,0.262]
[1740034056135,0.8229,2731.5,2731.3,0.262]
[1740034059774,3.94816455,2731.5,2731.3,0.262]
[1740034062511,7.60922455,2731.5,2731.3,0.262]
[1740034062685,8.73624301,2731.5,2731.3,0.262]
[1740034064477,3.66112,2731.4,2730.9,3.66166]
[1740034064659,0.7885,2731.3,2731.0,0.262]
[1740034066685,4.44977,2731.3,2730.9,0.262]
[1740034067506,4.44976,2731.3,2730.9,0.262]
[1740034069095,0.7885,2731.3,2730.9,0.262]
[1740034070556,4.44982,2731.3,2730.9,0.262]
[1740034073025,3.66169,2731.0,2730.5,0.7678]
[1740034073170,0.7901,2730.9,2730.6,0.262]
[1740034073363,0.7901,2730.9,2730.5,0.262]
[1740034077358,4.45119,2730.6,2730.0,3.66295]
[1740034077607,3.12526455,2730.5,2730.2,0.262]
[1740034078270,6.78762455,2730.5,2730.0,3.66295]
[1740034078432,6.78762455,2730.5,2730.1,0.262]
[1740034081664,3.66264,2730.3,2729.9,0.7973]
[1740034081826,3.66264,2730.3,2729.7,6.6633]
[1740034082031,3.66264,2730.3,2729.8,0.262]
[1740034083455,6.78790455,2730.3,2729.8,0.262]
[1740034084673,3.66273,2730.2,2729.7,3.27710016]
[1740034084876,0.8107,2730.1,2729.8,0.262]
[1740034089968,0.8107,2730.1,2729.6,12.64684]
[1740034090150,3.66308,2730.0,2729.7,0.262]
[1740034090343,0.808,2729.9,2729.7,0.262]
[1740034091532,0.808,2729.9,2729.7,3.92538]
[1740034091763,3.12526455,2730.0,2729.8,3.66317]
[1740034092269,3.12526455,2730.0,2729.9,3.66313]
[1740034092473,3.12526455,2730.0,2729.9,4.44333]
[1740034095571,3.12526455,2730.4,2729.9,4.44333]
[1740034095875,3.12526455,2730.4,2730.0,3.66298]
[1740034097171,3.12526455,2730.4,2729.9,2.12173995]
[1740034097172,3.12526455,2730.4,2729.8,3.66317]
[1740034097352,0.8128,2730.3,2729.8,3.66317]
[1740034097651,0.8128,2730.3,2729.9,3.66312]
[1740034097853,3.12526455,2730.4,2730.1,3.66285]
[1740034098270,3.12526455,2730.4,2730.1,7.3256]
[1740034098440,3.12526455,2730.4,2730.2,3.66264]
[1740034098642,3.12526455,2730.4,2730.1,5.00428995]
[1740034099173,3.12526455,2730.4,2730.0,0.8099]
[1740034099543,3.12526455,2730.4,2730.1,3.66284]
[1740034100363,3.12526455,2730.4,2730.1,7.32568]
[1740034100581,3.12526455,2730.4,2730.1,3.66284]
[1740034100778,3.12526455,2730.4,2730.2,3.66264]
[1740034101077,3.12526455,2730.4,2730.1,3.66284]
[1740034101283,0.8128,2730.5,2730.3,3.6626]
[1740034101776,0.0288,2730.6,2730.4,3.66238]
[1740034101975,0.0288,2730.6,2730.5,0.262]
[1740034109390,0.0288,2730.6,2730.5,3.92433]
[1740034109567,0.0288,2730.6,2730.5,4.74493]
[1740034109959,0.0288,2730.6,2730.5,7.51131721]
[1740034124400,0.0288,2730.6,2730.5,10.51131721]
[1740034124590,0.0288,2730.6,2730.5,9.08538112]
[1740034128579,0.0288,2730.6,2730.5,10.50894605]
[1740034129275,1e-05,2730.6,2730.5,10.50894605]
[1740034129906,1e-05,2730.6,2730.5,10.69908414]
[1740034130577,1e-05,2730.6,2730.5,11.24908414]
[1740034130895,3.12526455,2731.7,2731.6,3.66085]
[1740034131093,0.7762,2731.9,2731.8,3.66059]
[1740034131297,0.7762,2732.3,2732.0,3.6603]
[1740034131498,0.7762,2732.3,2732.2,3.66005]
[1740034135284,3.12526455,2732.4,2732.3,3.65992]
[1740034135691,3.12526455,2732.4,2732.2,3.66005]
[1740034136891,0.8082,2732.5,2732.2,3.66005]
[1740034139376,0.8238,2732.4,2731.9,3.66036]
[1740034139678,3.65975,2732.5,2731.5,3.66091]
[1740034139679,0.776,2732.0,2731.5,3.66091]
[1740034140003,0.776,2732.0,2731.6,0.262]
[1740034140189,0.776,2732.0,2731.7,3.66071]
[1740034140393,0.776,2732.0,2731.7,7.32135]
[1740034140579,0.776,2732.0,2731.7,3.66064]
[1740034141305,0.776,2732.0,2731.7,7.32127]
[1740034141677,0.776,2732.0,2731.7,3.66063]
[1740034142502,0.776,2732.0,2731.6,0.262]
[1740034143179,0.776,2732.0,2731.6,3.92283]
[1740034143381,0.776,2732.0,2731.6,0.262]
[1740034143581,3.12526455,2732.1,2732.0,3.66032]
[1740034144011,3.12526455,2732.1,2731.7,3.66066]
[1740034144318,0.8242,2732.0,2731.7,3.66062]
[1740034144624,0.8242,2732.0,2731.8,0.262]
[1740034145138,3.12526455,2732.1,2732.0,3.66032]
[1740034145695,3.12526455,2732.1,2731.9,3.66035]
[1740034145891,3.12526455,2732.1,2732.0,3.66032]
[1740034147519,3.12526455,2732.1,2731.8,0.262]
[1740034147684,0.7965,2732.0,2731.8,0.262]
[1740034147890,0.7965,2731.9,2731.4,8.227]
[1740034148199,0.7965,2731.9,2731.5,0.262]
[1740034148791,0.7965,2731.9,2731.6,0.262]
[1740034149011,0.7965,2731.9,2731.7,3.92261]
[1740034150858,3.95386455,2732.1,2731.8,3.66059]
[1740034151149,3.95386455,2732.1,2731.7,0.262]
[1740034151349,0.7779,2732.0,2731.7,0.262]
[1740034151517,0.7779,2732.0,2731.7,3.92262]
[1740034152115,0.7779,2732.0,2731.8,3.66057]
[1740034152321,0.7779,2732.0,2731.8,3.6605]
[1740034152717,0.7779,2732.0,2731.7,0.262]
[1740034153010,5.19461546,2732.0,2731.7,0.262]
[1740034153209,0.7667,2731.9,2731.7,0.262]
[1740034158210,4.42718,2731.9,2731.0,0.7583]
[1740034158341,0.7547,2731.6,2731.1,0.262]
[1740034158693,0.7686,2731.5,2731.1,3.92352]
[1740034159784,1.211542,2731.5,2731.1,3.66152]
[1740034160003,1.211542,2731.5,2731.2,0.262]
[1740034160639,0.7686,2731.5,2731.2,0.262]
[1740034161035,0.7686,2731.5,2731.2,3.92338]
[1740034161677,0.7686,2731.5,2731.2,0.262]
[1740034161973,0.7686,2731.5,2731.3,3.66121]
[1740034162334,0.7686,2731.5,2731.4,3.66112]
[1740034162573,3.12526455,2731.6,2731.3,3.66121]
[1740034162770,3.12526455,2731.6,2731.5,3.66099]
[1740034163479,3.12526455,2731.6,2731.4,3.66112]
[1740034163665,0.7845,2731.7,2731.4,3.66112]
[1740034164380,0.7845,2731.7,2731.3,3.66125]
[1740034164680,0.7845,2731.7,2731.2,3.92333]
[1740034164879,0.7845,2731.7,2731.5,3.66098]
[1740034165681,0.7845,2731.7,2731.6,3.66085]
[1740034165976,3.93336455,2731.9,2731.6,3.66085]
[1740034167370,3.93336455,2731.9,2731.6,7.32162]
[1740034168265,3.93336455,2731.9,2731.7,3.66072]
[1740034168463,3.12526455,2731.9,2731.8,3.66059]
[1740034169659,0.7764,2732.1,2731.8,3.66059]
[1740034170043,0.7764,2732.1,2731.9,3.66041]
[1740034170286,0.7764,2732.1,2732.0,0.262]
[1740034173557,0.7764,2732.1,2732.0,3.92232]
[1740034173774,0.8133,2732.3,2732.1,3.66008]
[1740034173946,0.8133,2732.3,2732.2,3.66005]
[1740034174153,0.8133,2732.3,2732.1,3.66008]
[1740034174788,3.93856455,2732.4,2732.1,3.66008]
[1740034175481,3.93856455,2732.4,2732.0,0.262]
[1740034176382,3.93856455,2732.4,2732.0,3.92224]
[1740034176573,3.93856455,2732.4,2732.1,3.66016]
[1740034177462,3.93856455,2732.4,2732.2,0.262]
[1740034177858,3.12526455,2732.4,2732.3,3.65992]
[1740034178371,3.12526455,2732.4,2732.2,0.262]
[1740034178575,3.12526455,2732.4,2732.2,3.92197]
[1740034178890,3.12526455,2732.4,2732.3,3.65992]
[1740034179466,3.12526455,2732.4,2732.2,7.58192]
[1740034179849,3.12526455,2732.4,2732.3,3.65992]
[1740034181568,0.7868,2732.6,2732.3,3.65992]
[1740034184188,1.231405,2732.6,2732.1,3.66018]
[1740034184379,0.7575,2732.5,2732.2,0.262]
[1740034184850,0.7575,2732.5,2732.2,3.92205]
[1740034186090,0.7575,2732.5,2732.2,0.262]
[1740034188376,4.41723,2732.5,2732.0,3.0]
[1740034188570,5.58188496,2732.5,2732.3,0.262]
[1740034192502,0.7575,2732.5,2732.3,0.262]
[1740034192795,0.7575,2732.5,2732.3,3.92189]
[1740034196787,3.12526455,2732.6,2732.3,3.92189]
[1740034197167,3.12526455,2732.6,2732.3,7.58172]
[1740034197590,3.12526455,2732.6,2732.3,3.92183]
[1740034197987,3.12526455,2732.6,2732.4,3.65971]
[1740034198180,3.12526455,2732.6,2732.5,3.65965]
[1740034198592,3.12526455,2732.6,2732.3,0.262]
[1740034198793,3.51734101,2732.6,2732.3,0.262]
[1740034199574,0.778,2732.5,2732.3,0.262]
[1740034199767,4.43767,2732.5,2732.3,0.262]
[1740034199970,0.778,2732.5,2732.0,6.66025]
[1740034200203,0.778,2732.5,2732.1,0.262]
[1740034200504,0.778,2732.3,2731.9,0.262]
[1740034201001,3.66006,2732.2,2731.9,0.262]
[1740034202310,4.43794,2732.3,2731.9,0.262]
[1740034204303,0.778,2732.3,2731.9,0.262]
[1740034204511,3.66005,2732.2,2731.9,0.262]
[1740034204807,4.54938581,2732.2,2731.9,0.262]
[1740034205103,3.16752,2732.0,2731.9,0.262]
[1740034205313,6.29278455,2732.0,2731.9,0.262]
[1740034207307,3.6606,2731.8,2731.6,0.262]
[1740034207513,0.7993,2731.7,2731.6,0.262]
[1740034209416,0.7993,2731.7,2731.5,0.262]
[1740034209776,0.7993,2731.7,2731.3,6.66123]
[1740034209979,3.92456455,2731.7,2731.4,0.262]
[1740034212286,3.12526455,2731.7,2731.6,3.66085]
[1740034212878,3.12526455,2731.7,2731.6,7.41795]
[1740034213083,3.12526455,2732.5,2731.9,3.66036]
[1740034213308,3.89626455,2732.5,2731.9,3.66036]
[1740034213811,3.89626455,2732.5,2731.9,4.41746]
[1740034214715,3.12526455,2732.5,2732.0,3.66023]
[1740034214913,3.12526455,2732.5,2732.2,3.65995]
[1740034215121,3.12526455,2732.5,2732.3,3.92182]
[1740034216438,3.12526455,2732.5,2732.3,7.58164]
[1740034216795,3.12526455,2732.5,2732.4,3.65978]
[1740034217739,3.12526455,2732.5,2732.3,3.92182]
[1740034218094,3.12526455,2732.5,2732.3,7.58163]
[1740034218307,3.12526455,2732.5,2732.3,3.92181]
[1740034218712,3.12526455,2732.5,2732.3,7.58164]
[1740034218907,3.12526455,2732.5,2732.3,3.92181]
[1740034219122,3.12526455,2732.5,2732.4,3.65978]
[1740034220024,0.8295,2732.9,2732.3,4.71151]
[1740034220025,0.8295,2732.9,2732.3,1.0517]
[1740034220247,0.8295,2732.9,2732.6,3.65943]
[1740034221596,3.12526455,2733.1,2732.6,7.31884]
[1740034221794,3.88576455,2733.1,2732.6,3.65941]
[1740034221993,3.88576455,2733.1,2732.7,3.65936]
[1740034222323,3.12526455,2733.1,2732.8,4.45111]
[1740034222628,6.78411455,2733.1,2732.6,3.65941]
[1740034224138,6.78411455,2733.1,2732.5,0.7919]
[1740034224319,6.78411455,2733.1,2732.5,4.45153]
[1740034224718,4.46028,2733.0,2732.5,3.65963]
[1740034225841,0.8013,2733.0,2732.5,3.65963]
[1740034226640,4.48022,2732.9,2732.3,3.65986]
[1740034226817,0.8211,2732.8,2732.4,0.261]
[1740034227008,0.8211,2732.8,2732.5,3.65952]
[1740034227208,0.8211,2732.8,2732.5,7.31909]
[1740034227841,0.8211,2732.8,2732.5,3.65952]
[1740034228517,3.12526455,2733.1,2732.8,3.65912]
[1740034229314,3.12526455,2733.1,2732.9,3.65906]
[1740034229510,3.12526455,2733.1,2732.6,3.6594]
[1740034229915,3.12526455,2733.1,2732.5,3.0]
[1740034229916,4.48008,2733.0,2732.5,3.0]
[1740034230342,4.48008,2733.0,2732.6,0.261]
[1740034231715,0.8211,2733.0,2732.6,0.261]
[1740034232219,7.60536455,2733.0,2732.5,3.65963]
[1740034232413,7.60536455,2733.0,2732.6,0.261]
[1740034232614,3.94636455,2733.0,2732.6,0.261]
[1740034234117,3.94636455,2733.0,2732.6,3.92046]
[1740034235530,3.94636455,2733.0,2732.7,3.65937]
[1740034235729,3.12526455,2733.0,2732.9,3.65911]
[1740034237939,0.7846,2733.3,2733.0,3.65893]
[1740034238521,4.44318,2733.3,2732.8,3.65912]
[1740034240549,0.7846,2733.3,2732.8,3.65912]
[1740034246230,4.44318,2733.3,2732.8,3.65912]
[1740034246426,5.56586346,2733.3,2732.8,3.65912]
[1740034247035,0.7972,2733.2,2732.6,3.92043]
[1740034247237,4.78126346,2733.3,2732.7,0.261]
[1740034247238,0.7972,2733.0,2732.7,0.261]
[1740034249458,0.7972,2733.0,2732.5,3.0]
[1740034249622,3.65901,2733.0,2732.5,3.0]
[1740034249828,1.67268346,2733.3,2732.2,3.65994]
[1740034249829,0.8268,2732.8,2732.2,3.65994]
[1740034250031,3.65939,2732.7,2732.3,3.261]
[1740034250229,0.55,2732.5,2732.1,0.261]
[1740034250456,0.55,2732.5,2732.0,8.224]
[1740034250763,4.341745,2732.5,2732.1,0.261]
[1740034251124,3.65979,2732.4,2732.1,0.261]
[1740034251328,4.341745,2732.5,2732.1,0.261]
[1740034251547,3.12526455,2732.5,2732.2,3.66003]
[1740034251762,3.12526455,2732.5,2732.4,3.65978]
[1740034252151,3.12526455,2732.5,2732.2,3.66003]
[1740034252456,3.12526455,2732.5,2732.2,7.31998]
[1740034252657,3.12526455,2732.5,2732.2,3.65995]
[1740034252965,6.78439455,2732.9,2732.2,3.65995]
[1740034253161,0.7926,2732.8,2732.2,3.65995]
[1740034253658,0.7926,2732.8,2732.2,7.31991]
[1740034253963,4.45186,2732.8,2732.2,3.65995]
[1740034255931,4.45186,2732.8,2732.2,7.31992]
[1740034256362,4.45186,2732.8,2732.2,3.65995]
[1740034257635,0.7926,2732.8,2732.3,3.65983]
[1740034261577,4.45189,2732.8,2732.2,3.66003]
[1740034262761,4.45189,2732.8,2732.3,0.261]
[1740034264983,4.45189,2732.8,2732.3,3.92088]
[1740034269890,0.7926,2732.8,2732.3,3.92088]
[1740034270092,0.7926,2732.8,2732.4,4.99894425]
[1740034270399,0.7926,2732.8,2732.5,3.65958]
[1740034270605,0.7926,2732.8,2732.7,3.65938]
[1740034270767,3.12526455,2732.9,2732.6,4.99874425]
[1740034270768,3.12526455,2732.9,2732.6,1.33923425]
[1740034271089,3.12526455,2732.9,2732.8,1.33923425]
[1740034272558,3.12526455,2732.9,2732.7,3.65931]
[1740034273283,3.12526455,2732.9,2732.5,7.24419221]
[1740034273480,0.7808,2732.8,2732.5,3.65954]
[1740034273886,0.7808,2732.8,2732.6,3.6595]
[1740034274987,3.12526455,2732.9,2732.6,3.6595]
[1740034275297,3.12526455,2732.9,2732.7,3.65932]
[1740034275597,3.12526455,2732.9,2732.7,4.41122]
[1740034275895,3.12526455,2732.9,2732.7,3.65932]
[1740034276703,0.7518,2733.2,2732.7,3.65932]
[1740034277161,4.41059,2733.2,2732.7,3.65932]
[1740034278696,0.7518,2733.2,2732.7,7.31862]
[1740034279000,0.7518,2733.2,2732.9,3.65908]
[1740034279303,4.47728,2733.5,2732.9,4.48388]
[1740034279667,3.65847,2733.4,2732.9,4.48388]
[1740034283198,3.65862,2733.3,2732.7,3.65934]
[1740034283398,3.12526455,2733.6,2732.8,3.0]
[1740034283399,4.47982,2733.2,2732.8,3.0]
[1740034283603,0.8211,2733.1,2732.8,0.261]
[1740034283807,0.8211,2732.9,2732.5,3.65959]
[1740034283969,0.8211,2732.9,2732.3,3.65986]
[1740034283970,4.48022,2732.9,2732.6,0.261]
[1740034284172,4.48023,2732.9,2732.6,0.261]
[1740034284372,0.8211,2732.9,2732.6,0.261]
[1740034285503,0.8211,2732.9,2732.5,3.65962]
[1740034285808,0.8211,2732.9,2732.7,0.261]
[1740034286922,7.59381455,2733.1,2732.7,0.261]
[1740034287529,0.8097,2732.9,2732.7,0.261]
[1740034290696,0.8151,2733.0,2732.7,0.261]
[1740034291418,4.47415,2733.0,2732.7,0.261]
[1740034293096,8.13325,2733.0,2732.7,0.261]
[1740034293296,5.60000146,2733.0,2732.7,0.261]
[1740034293630,9.25907146,2733.0,2732.7,0.261]
[1740034294429,5.60000146,2733.0,2732.7,0.261]
[1740034297417,3.12526455,2733.1,2732.8,0.7984]
[1740034297618,3.12526455,2733.1,2733.0,3.65898]
[1740034297818,3.12526455,2733.1,2732.8,0.7984]
[1740034297819,3.12526455,2733.1,2732.9,3.65903]
[1740034298019,3.12526455,2733.1,2732.9,7.31807]
[1740034298218,3.12526455,2733.1,2732.9,3.65903]
[1740034298530,3.12526455,2733.1,2732.9,3.65902]
[1740034298721,3.12526455,2733.1,2732.9,4.99761787]
[1740034298921,3.12526455,2733.1,2732.9,3.65902]
[1740034300413,0.8164,2733.4,2732.9,3.65902]
[1740034305954,3.12526455,2733.5,2733.3,3.65851]
[1740034306115,0.7526,2733.9,2733.5,3.65831]
[1740034306317,1.14038646,2733.9,2733.5,3.91931]
[1740034306527,4.79816646,2733.9,2733.5,0.261]
[1740034307445,4.41038,2733.9,2733.5,0.261]
[1740034308122,3.65791,2733.8,2733.5,0.261]
[1740034313366,0.7612,2733.7,2733.5,0.261]
[1740034313562,0.7612,2733.7,2733.1,3.65876]
[1740034313741,0.7612,2733.7,2733.4,0.261]
[1740034313946,1.203111,2733.7,2733.4,0.261]
[1740034314540,3.65817,2733.6,2733.1,3.65876]
[1740034314733,3.65817,2733.6,2732.9,3.65908]
[1740034314734,0.7612,2733.4,2733.2,0.261]
[1740034315270,4.41969,2733.4,2733.2,0.261]
[1740034317158,8.07823,2733.4,2733.2,0.261]
[1740034317474,4.41969,2733.4,2733.2,0.261]
[1740034317687,8.83272546,2733.4,2733.2,0.261]
[1740034317980,5.17418546,2733.4,2733.2,0.261]
[1740034318355,8.83271546,2733.4,2733.2,0.261]
[1740034318559,5.17418546,2733.4,2733.2,0.261]
[1740034321151,8.29945001,2733.4,2733.2,0.261]
[1740034321959,1.379945,2733.3,2732.8,0.7606]
[1740034322159,1.379945,2733.3,2732.5,3.65955]
[1740034322160,0.55,2733.0,2732.9,0.261]
[1740034322491,0.55,2733.0,2732.5,0.261]
[1740034322685,3.65916,2732.9,2732.5,0.261]
[1740034322923,3.65929,2732.8,2732.4,0.7929]
[1740034323067,0.7603,2732.8,2732.5,0.261]
[1740034323906,4.41955,2732.8,2732.5,0.261]
[1740034325183,4.41955,2732.8,2732.0,0.7982]
[1740034325184,3.65966,2732.5,2732.0,0.7982]
[1740034325358,0.420966,2732.4,2731.8,0.7982]